Cogmind - Beta 13 @@@ ROGUE MODE // 2024.04.01 @ 12:12:11 Player: ZombieDenden Result: Destroyed by C-17 Slicer with Blade Saw Performance ------------- Evolutions (2) 1000 Regions Visited (6) 1200 Robots Destroyed (47) 235 Value Destroyed (1240) 1240 Prototype IDs (6) 120 Alien Tech Used (0) 0 Bonus (300) 300 TOTAL SCORE: 4095 Bonus ------- Aligned with FarCom 300 Cogmind --------- Core Integrity 0/550 Matter 285/300 Energy 100/100 System Corruption 5% Temperature Cool (39) Movement Core (200) Ox3 Location -8/Materials Parts ------- > --- POWER (2) -------- (None) > --- PROPULSION (2) --- (None) > --- UTILITY (5) ------ Medium Storage Unit Modified TNC Hacking Suite > --- WEAPON (2) ------- (None) > --- INVENTORY (10) --- Deuterium Engine Disposable Heat Sink Compact Battery (200) High-capacity Matter Pod (56) Improved Light Armor Plating Hacking Suite Advanced Beam Rifle Assault Cannon Peak State ------------ > --- POWER ------------ Cooled Ion Engine Light Nuclear Core > --- PROPULSION ------- Light Treads Light Treads > --- UTILITY ---------- Medium Storage Unit Weight Redist. System Signal Interpreter Modified TNC Hacking Suite > --- WEAPON ----------- YOLO Cannon > --- INVENTORY -------- Improved Ion Engine Disposable Heat Sink Compact Battery High-capacity Matter Pod Improved Light Armor Plating Hacking Suite Improved Assault Rifle Assault Cannon Grenade Launcher [Rating: 43] Favorites ----------- Power Ion Engine Engine Ion Engine Power Core Light Nuclear Core Propulsion Light Treads Treads Light Treads Wheel Wheel Utility Medium Storage Unit Device Weight Redist. System Storage Medium Storage Unit Processor Modified TNC Hackware Hacking Suite Protection Light Armor Plating Weapon YOLO Cannon Energy Gun Beam Rifle Energy Cannon YOLO Cannon Ballistic Gun Assault Rifle Launcher Grenade Launcher Build | -11 -10 -9 -9 -9 -8 -8 ------- Run | Yrd Mat Mat Min Exi Min Mat Slots Evolved 4 | . . 2 . . . 2 Power 1 | . . 1 . . . . Propulsion . | . . . . . . . Utility 3 | . . 1 . . . 2 Weapon . | . . . . . . . Parts Attached 51 | 9 6 19 6 1 1 9 Power 11 | 1 . 5 2 . 1 2 Engine 10 | 1 . 5 2 . . 2 Core 1 | . . . . . 1 . Reactor . | . . . . . . . Propulsion 10 | 4 . 4 . . . 2 Treads 4 | 2 . 2 . . . . Leg . | . . . . . . . Wheel 6 | 2 . 2 . . . 2 Hover . | . . . . . . . Flight . | . . . . . . . Utility 11 | 1 5 2 . . . 3 Device 2 | . 1 . . . . 1 Storage 3 | 1 2 . . . . . Processor 3 | . 1 . . . . 2 Hackware 1 | . . 1 . . . . Protection 2 | . 1 1 . . . . Artifact . | . . . . . . . Weapon 19 | 3 1 8 4 1 . 2 Energy Gun 5 | . 1 2 1 . . 1 Energy Cannon 1 | . . . . 1 . . Ballistic Gun 8 | 3 . 4 1 . . . Ballistic Cannon . | . . . . . . . Launcher 5 | . . 2 2 . . 1 Special Weapon . | . . . . . . . Impact Weapon . | . . . . . . . Slashing Weapon . | . . . . . . . Piercing Weapon . | . . . . . . . Special Melee Weapon . | . . . . . . . Unidentified Prototypes 6 | . . 1 1 1 . 3 Parts Lost 14 | . . 3 . . . 11 Power 3 | . . . . . . 3 Propulsion 6 | . . 2 . . . 4 Utility 3 | . . 1 . . . 2 Weapon 2 | . . . . . . 2 Highest Loss Streak 8 | . . 2 . . . 8 To Critical Strikes . | . . . . . . . Average Slot Usage (%) 90 | . 94 89 100 94 88 81 Engine 17 | . 14 21 22 22 18 10 Core 1 | . . . . . 3 7 Treads 20 | . 28 17 22 22 22 11 Wheel 1 | . . 3 . . . 2 Device 8 | . . 11 11 11 11 5 Storage 11 | . 14 11 11 11 11 9 Processor 3 | . 3 . . . . 17 Hackware 7 | . . . 11 11 11 9 Protection 1 | . 4 2 . . . . Energy Gun 3 | . 4 4 7 6 . . Energy Cannon 4 | . . . . 4 11 8 Ballistic Gun 8 | . 23 16 13 6 . . Naked Turns . | . . . . . . . Heaviest Build 45 | 13 21 28 31 43 43 45 Greatest Support 46 | 40 46 46 46 46 46 46 Greatest Overweight (x) 7 | . . . . . . 7 Average Overweight (x) . | . . . . . . . Largest Inventory Capacity 10 | 8 10 10 10 10 10 10 Average Capacity 9 | 7 9 10 10 10 10 10 Most Carried 10 | 5 10 10 10 10 10 10 Average Carried 8 | 3 7 9 9 9 9 9 Final Capacity 10 | 8 10 10 10 10 10 10 Final Carried 10 | 4 10 10 10 10 10 8 Class Distribution -------------------- 68% | Mutant 31% | Scavenger-Mutant Dominant Class ---------------- Mutant | -10/Materials Scavenger-Mutant | -9/Materials Scavenger-Mutant | -9/Mines Scavenger-Mutant | -9/Exiles Mutant | -8/Mines Mutant | -8/Materials Resources | -11 -10 -9 -9 -9 -8 -8 ----------- Run | Yrd Mat Mat Min Exi Min Mat Matter Collected 1174 | 190 258 411 208 . 16 91 Remotely . | . . . . . . . Salvage Created 1269 | . 346 510 159 . . 254 Parts 84 | . 31 29 10 . . 14 Haulers Intercepted 1 | . 1 . . . . . Recyclers Shooed . | . . . . . . . Parts Field Recycled . | . . . . . . . Retrieved Matter . | . . . . . . . Parts Self-Destructed . | . . . . . . . Prevented . | . . . . . . . Kills | -11 -10 -9 -9 -9 -8 -8 ------- Run | Yrd Mat Mat Min Exi Min Mat Combat Hostiles Destroyed 41 | . 12 14 6 . . 9 Guns 28 | . 12 12 4 . . . Cannons 2 | . . . . . . 2 AOE 9 | . . 2 2 . . 5 Classes Destroyed 10 | . 4 1 . . . 5 Worker 2 | . . . . . . 2 Builder 1 | . . . . . . 1 Hauler 1 | . 1 . . . . . Operator 1 | . . . . . . 1 Watcher 1 | . 1 . . . . . Swarmer 14 | . 9 3 2 . . . Cutter 2 | . . . . . . 2 Grunt 20 | . 3 8 4 . . 5 Duelist 1 | . . . . . . 1 Sentry 4 | . . 3 . . . 1 Best Kill Streak 4 | . 3 3 4 . . 4 Combat Bots Only 4 | . 3 3 4 . . 3 Max Kills in Single Turn 3 | . 2 1 2 . . 3 Gunslinging 1 | . 1 . . . . . Exploded 2 | . . 1 2 . . 1 Melee . | . . . . . . . Uniques/NPCs Destroyed . | . . . . . . . Combat | -11 -10 -9 -9 -9 -8 -8 -------- Run | Yrd Mat Mat Min Exi Min Mat Hostile Shots Fired 214 | . 36 95 18 . . 65 Missed 52 | . 8 19 8 . . 17 Damage Taken 2633 | . 233 824 142 . . 1434 Core 694 | . 31 89 22 . . 552 Absorbed by Shields . | . . . . . . . Regen/Repaired (Parts) 58 | . . 43 . . . 15 Core Remaining (%) 86 | 100 87 . . . 72 . Volleys Fired 110 | . 33 49 10 . . 18 Largest 2 | . 2 2 2 . . 1 Hottest 100 | . 60 80 79 . . 100 Shots Fired 193 | . 63 93 19 . . 18 Gun 169 | . 63 90 16 . . . Cannon 18 | . . . . . . 18 Launcher 6 | . . 3 3 . . . Special . | . . . . . . . Kinetic 128 | . 52 64 12 . . . Thermal 59 | . 11 26 4 . . 18 Explosive 6 | . . 3 3 . . . Electromagnetic . | . . . . . . . Robot Hit Streak 10 | . 7 10 6 . . 2 Robot Miss Streak 6 | . 4 3 1 . . 6 Penetration Max . | . . . . . . . Secondary Targets 5 | . 2 3 . . . . Max Gunslinging Chain 1 | . 1 1 . . . . Shots Hit Robots 103 | . 30 57 11 . . 5 Core Hits 67 | . 21 25 10 . . 11 Critical Kills 1 | . . . . . . 1 Critical Parts Destroyed . | . . . . . . . Critical Strikes 1 | . . . . . . 1 Meltdown 1 | . . . . . . 1 Melee Attacks . | . . . . . . . Impact . | . . . . . . . Slashing . | . . . . . . . Piercing . | . . . . . . . Sneak Attacks . | . . . . . . . Combat Hostiles . | . . . . . . . Follow-up Attacks . | . . . . . . . Damage Inflicted 3984 | . 318 911 358 . . 2397 Guns 1182 | . 318 724 140 . . . Cannons 981 | . . . . . . 981 Explosions 1818 | . . 187 215 . . 1416 Melee . | . . . . . . . Ramming 3 | . . . 3 . . . Kinetic 940 | . 264 578 98 . . . Thermal 2639 | . 54 146 42 . . 2397 Explosive 402 | . . 187 215 . . . Electromagnetic . | . . . . . . . Impact . | . . . . . . . Slashing . | . . . . . . . Piercing . | . . . . . . . Highest Corruption 5 | . . . . . . 5 Average Corruption 5 | . . . . . . 5 Corruption Purged . | . . . . . . . Corruption Blocked . | . . . . . . . Overload Shots . | . . . . . . . Overflow Damage 342 | . . 10 . . . 332 Projectiles 230 | . . . . . . 230 Explosions 112 | . . 10 . . . 102 Melee . | . . . . . . . Knockbacks . | . . . . . . . Impact . | . . . . . . . Kinetic . | . . . . . . . Secondary . | . . . . . . . Self-Inflicted Damage 334 | . . . 25 . . 309 Shots 8 | . . . 2 . . 6 Rammed 1 | . . . 1 . . . Targets Rammed 1 | . . . 1 . . . Kicked . | . . . . . . . Crushed . | . . . . . . . Highest Temperature 437 | . 27 381 108 . . 437 Average Temperature 94 | . 9 144 40 . . 75 Received Heat Transfer 645 | . 36 384 54 . . 171 Effects 4 | . . 3 . . . 1 Shutdowns 1 | . . 1 . . . . Interference 1 | . . 1 . . . . Matter Decay 1 | . . 1 . . . . Damage (minor) 1 | . . . . . . 1 Siege Activations . | . . . . . . . Robots Corrupted . | . . . . . . . Combat Hostiles . | . . . . . . . Parts Fried . | . . . . . . . Impact Corruptions . | . . . . . . . Robots Melted 2 | . . . . . . 2 Combat Hostiles 2 | . . . . . . 2 Parts Melted 4 | . . . . . . 4 Heat Transferred 3041 | . 125 325 111 . . 2480 Parts Sabotaged . | . . . . . . . Parts Stolen . | . . . . . . . Parts Stripped . | . . . . . . . Power Chain Reactions . | . . . . . . . Alert | -11 -10 -9 -9 -9 -8 -8 ------- Run | Yrd Mat Mat Min Exi Min Mat Peak Influence 360 | . 304 360 302 . . 207 Initial 104 | . . 65 104 . . . Average 99 | . 146 180 222 . . 89 Maximum Alert Level 1 | . 1 1 1 . . 1 Low Security (%) 83 | 100 75 66 43 . 100 99 Level 1 16 | . 24 33 56 . . . Level 2 . | . . . . . . . Level 3 . | . . . . . . . Level 4 . | . . . . . . . Level 5 . | . . . . . . . High Security . | . . . . . . . Max Security . | . . . . . . . Squads Dispatched 12 | . 2 4 1 . . 5 Investigation 5 | . 1 1 . . . 3 Extermination . | . . . . . . . Reinforcement 7 | . 1 3 1 . . 2 Assault . | . . . . . . . Garrison . | . . . . . . . Intercept . | . . . . . . . Searches Triggered . | . . . . . . . Construction Impeded 1 | . . . 1 . . . Haulers Reinforced . | . . . . . . . Active Scanning Responses . | . . . . . . . Cargo Convoy Interrupts . | . . . . . . . Stealth | -11 -10 -9 -9 -9 -8 -8 --------- Run | Yrd Mat Mat Min Exi Min Mat Distress Signals 2 | . . 1 . . . 1 Communications Jammed . | . . . . . . . Distress Signals . | . . . . . . . Times Spotted 56 | . 17 17 7 . . 15 Peak Tracking Total 6 | . 4 4 4 . . 6 Tactical Retreats 2 | . 1 . 1 . . . Traps | -11 -10 -9 -9 -9 -8 -8 ------- Run | Yrd Mat Mat Min Exi Min Mat Traps Triggered 1 | . 1 . . . . . Indirectly . | . . . . . . . Trap Hack Attempts . | . . . . . . . Triggered . | . . . . . . . Disarmed . | . . . . . . . Reprogrammed . | . . . . . . . Reused . | . . . . . . . Traps Extracted . | . . . . . . . Installed . | . . . . . . . Triggered . | . . . . . . . Machines | -11 -10 -9 -9 -9 -8 -8 ---------- Run | Yrd Mat Mat Min Exi Min Mat Machines Disabled 4 | . . . 1 . . 3 Max in Single Turn 1 | . . . 1 . . 1 Machines Repaired . | . . . . . . . Machines Dismantled . | . . . . . . . Machines Sabotaged . | . . . . . . . Overloaded Fab Kills . | . . . . . . . Hacking | -11 -10 -9 -9 -9 -8 -8 --------- Run | Yrd Mat Mat Min Exi Min Mat Machines Accessed 9 | . 2 2 . 2 . 3 Terminals 4 | . 2 1 . . . 1 Fabricators . | . . . . . . . Repair Stations 2 | . . 1 . . . 1 Recycling Units . | . . . . . . . Scanalyzers 1 | . . . . . . 1 Garrison Access . | . . . . . . . Total Hacks 45 | . 9 10 . 12 . 14 Successful 35 | . 6 6 . 12 . 11 Failed 10 | . 3 4 . . . 3 Catastrophic . | . . . . . . . Database Lockouts . | . . . . . . . Manual 8 | . . . . 8 . . Terminals 21 | . 9 7 . . . 5 Fabricators . | . . . . . . . Repair Stations 6 | . . 3 . . . 3 Recycling Units . | . . . . . . . Scanalyzers 6 | . . . . . . 6 Garrison Access . | . . . . . . . Terminal Hacks 25 | . 6 4 . 12 . 3 Record 13 | . 1 . . 12 . . Robot Analysis 1 | . . 1 . . . . Emergency Access Points 1 | . 1 . . . . . Alert Level 5 | . 1 2 . . . 2 Locate Traps 3 | . 1 1 . . . 1 Investigation Status 1 | . 1 . . . . . Zone Layout 1 | . 1 . . . . . Fabricator Hacks . | . . . . . . . Repair Station Hacks 5 | . . 2 . . . 3 Scan Component 3 | . . 1 . . . 2 Repair 2 | . . 1 . . . 1 Recycling Unit Hacks . | . . . . . . . Scanalyzer 5 | . . . . . . 5 Insert Component 3 | . . . . . . 3 Analyze 2 | . . . . . . 2 Garrison Access Hacks . | . . . . . . . Unauthorized Hacks . | . . . . . . . Terminals . | . . . . . . . Fabricators . | . . . . . . . Repair Stations . | . . . . . . . Recycling Units . | . . . . . . . Scanalyzers . | . . . . . . . Garrison Access . | . . . . . . . Data Cores Recovered . | . . . . . . . Used . | . . . . . . . Hacking Detections 6 | . 1 2 . . . 3 Full Trace Events 4 | . . 1 . . . 3 Feedback Events . | . . . . . . . Feedback Blocked . | . . . . . . . Robot Schematics Acquired . | . . . . . . . Robots Built . | . . . . . . . Authchips . | . . . . . . . Time . | . . . . . . . Total Robot Build Rating . | . . . . . . . Part Schematics Acquired 2 | . . . . . . 2 Parts Built . | . . . . . . . Authchips . | . . . . . . . Time . | . . . . . . . Total Part Build Rating . | . . . . . . . Parts Repaired 2 | . . 1 . . . 1 Time 58 | . . 26 . . . 32 Parts Recycled . | . . . . . . . Recycled Matter . | . . . . . . . Retrieved Matter . | . . . . . . . Retrieved Components . | . . . . . . . Parts Scanalyzed 2 | . . . . . . 2 Part Schematics Acquired 2 | . . . . . . 2 Parts Damaged . | . . . . . . . Bothacking | -11 -10 -9 -9 -9 -8 -8 ------------ Run | Yrd Mat Mat Min Exi Min Mat Used RIF Installer . | . . . . . . . Robots Hacked . | . . . . . . . Non-combat . | . . . . . . . Combat . | . . . . . . . Robot Hacks Applied . | . . . . . . . Relay Couplers Released . | . . . . . . . Fabnet Peak Effective % . | . . . . . . . Robots Rewired . | . . . . . . . Allies Hacked . | . . . . . . . Hacks Repelled . | . . . . . . . Allies | -11 -10 -9 -9 -9 -8 -8 -------- Run | Yrd Mat Mat Min Exi Min Mat Total Allies . | . . . . . . . Largest Group . | . . . . . . . Highest-Rated Group . | . . . . . . . Highest-Rated Ally . | . . . . . . . Total Orders . | . . . . . . . Ally Attacks . | . . . . . . . Total Damage . | . . . . . . . Kills . | . . . . . . . Allies Corrupted . | . . . . . . . Allies Melted . | . . . . . . . Intel | -11 -10 -9 -9 -9 -8 -8 ------- Run | Yrd Mat Mat Min Exi Min Mat Robot Analysis Total 1 | . . 1 . . . . Derelict Logs Recovered . | . . . . . . . Drone Launches . | . . . . . . . Drone Recoveries . | . . . . . . . Exploration | -11 -10 -9 -9 -9 -8 -8 ------------- Run | Yrd Mat Mat Min Exi Min Mat Turns Passed 3578 | 297 479 566 371 525 798 542 Spaces Moved 1813 | 178 214 240 205 323 437 216 Core 13 | 1 . . . . . 12 Treads 1683 | 170 214 176 205 323 437 158 Legs . | . . . . . . . Wheels 117 | 7 . 64 . . . 46 Hover . | . . . . . . . Flight . | . . . . . . . Fastest Speed 50 | 50 160 80 160 160 160 95 Average Speed 160 | 156 160 138 160 160 160 190 Slowest Speed 400 | 160 160 160 160 160 160 400 Overloaded Moves . | . . . . . . . Propulsion Burnouts . | . . . . . . . Robots Hopped . | . . . . . . . Cave-ins Triggered . | . . . . . . . Time Travels 1 | . . . . . . 1 Exploration Rate (%) 39 | 8 44 27 46 65 70 19 Regions Visited 6 Branch Regions 3 Pre-discovered Areas 1 | . . . . 1 . . Known Exits Taken . | . . . . . . . Unknown Exits Taken 6 | 1 1 1 1 1 1 . Scrap Searched 1 | . . . . . 1 . Spaces Dug . | . . . . . . . Terrain Destroyed 224 | . . 20 24 . . 180 Melee . | . . . . . . . Projectile 7 | . . . . . . 7 AOE 217 | . . 20 24 . . 173 Terrain Rammed . | . . . . . . . Walls Destroyed . | . . . . . . . Machines Disabled . | . . . . . . . Actions | -11 -10 -9 -9 -9 -8 -8 --------- Run | Yrd Mat Mat Min Exi Min Mat Total 2264 | 196 295 382 227 334 537 293 Wait 196 | . 16 50 . . 95 35 Move 1807 | 177 213 239 204 322 436 216 Hop . | . . . . . . . Pick Up 59 | 10 17 13 3 5 2 9 Fast Attach 4 | . . 1 . . . 3 Attach 22 | 6 2 7 . 1 . 6 Detach 2 | . 1 . . . . 1 Swap 25 | 3 4 11 6 . 1 . Drop 38 | . 9 12 3 6 3 5 Fire 110 | . 33 49 10 . . 18 Melee . | . . . . . . . Ram . | . . . . . . . Kick . | . . . . . . . Crush 1 | . . . 1 . . . Escape Stasis . | . . . . . . . Rewire . | . . . . . . . Trap . | . . . . . . . Miscellaneous . | . . . . . . . Route ------- -11/Scrapyard -10/Materials (discovered 3 exits: *Mat x2 / [*Min]) -9/Materials -9/Mines (discovered 2 exits: *Exi / [*Zio]) -9/Exiles (discovered 2 exits: [*Min x2]) -8/Mines -8/Materials History --------- Turn | Location | Event 9 | -11/Scrapyard | Discovered new exit (range 15) 298 | -11/Scrapyard | Entered Materials 318 | -10/Materials | Build established: Mutant 457 | -10/Materials | Discovered new exit (range 12) 550 | -10/Materials | Discovered new exit (range 10) 665 | -10/Materials | Discovered new exit (range 15) 777 | -10/Materials | Entered another Materials area 777 | -9/Materials | Evolved 2 slots: Power x1, Utility x1 819 | -9/Materials | Repaired Ion Engine 1330 | -9/Materials | Discovered new exit (range 6) 1343 | -9/Materials | Entered Mines 1376 | -9/Mines | Build established: Scavenger-Mutant 1404 | -9/Mines | A Derelict revealed a hidden shortcut to a safe place 1708 | -9/Mines | Deemed a non-threat by the Exiles lab entrance 1708 | -9/Mines | Discovered new exit (range 5) 1714 | -9/Mines | Entered Exiles 1751 | -9/Exiles | Discovered new exit (range 14) 1799 | -9/Exiles | Met 8R-AWN 1829 | -9/Exiles | Met EX-HEX 1881 | -9/Exiles | Met EX-BIN 1903 | -9/Exiles | Aligned with FarCom system 1905 | -9/Exiles | Given EX-Vault access code 1997 | -9/Exiles | Opened EX-Vault 2007 | -9/Exiles | Found Prototype Energy Cannon 2009 | -9/Exiles | Identified YOLO Cannon 2016 | -9/Exiles | Found Prototype Processor 2020 | -9/Exiles | Found Prototype Device 2091 | -9/Exiles | Warned to stay clear of 0b10 Research branches 2141 | -9/Exiles | Met EX-DEC 2168 | -9/Exiles | Learned location of Zion (-7) 2224 | -9/Exiles | Discovered new exit (range 10) 2239 | -9/Exiles | Stole three prototypes: YOLO Cannon, Chronowheel, Modified TNC 2239 | -9/Exiles | Entered Mines 2257 | -8/Mines | Discovered new exit (range 10) 2296 | -8/Mines | Build established: Mutant 3037 | -8/Mines | Entered Materials 3037 | -8/Materials | Evolved 2 slots: Utility x2 3038 | -8/Materials | Identified Chronowheel 3038 | -8/Materials | Activated Chronowheel 3038 | -8/Materials | Spacetime reconverged on an earlier point 3038 | -8/Materials | Identified Modified TNC 3167 | -8/Materials | Repaired Weight Redist. System 3564 | -8/Materials | Core integrity fell below 50% 3574 | -8/Materials | Core integrity fell below 20% 3579 | -8/Materials | Destroyed by C-17 Slicer with Blade Saw Last Messages --------------- W-25 Informer sends out distress signal. U-05 Engineer lays Concrete. Identified Adv. Beam Rifle. Faulty integration triggers heat surge (+443). U-05 Engineer lays Concrete. U-05 Engineer builds a Wall. Overheating: Cld. Ion Engine damaged (-36). Acquired 5 matter. U-05 Engineer lays Concrete. Faulty Adv. Beam Rifle severed. Penetrated by Slug. Grenade Launcher destroyed. Knocked back. U-05 Engineer lays Concrete. Slug penetrates Wall. U-05 Engineer lays Concrete. Cld. Ion Engine destroyed. Critical hit (Blast). Knocked back. U-05 Engineer lays Concrete. Map ----- +----------------------------------------------------+ | ?????????????????????????????????????????????????? | | ?????????????????????????????????????????????????? | | ?????????????????????????????????????????????????? | | ?????????????????????????????????????????????????? | | ?????????a???????????????????????????????????????? | | ?????????????????????????????????????????????????? | | ?????????????????????????????????????????????????? | | ?????????????????????????????????????????????????? | | ?????????????????????????????????????????????????? | | ?????????????????????????????????????????????????? | | ?????????????????????????????????????????????????? | | ?????????????????????????????????????????????????? | | ?????????????????????????????????????????????????? | | ?????????????????????????????????????????????????? | | ?????????????????????????????????????????????????? | | ?????????????????????????????????????????????????? | | ???????????????????????????????????????????a?????? | | ??????????????????????????????Y??????????????????? | | ?????????????????????????????????????????????????? | | ?????????????????????????????????????????????????? | | ?????????????????????????###########?????????????? | | ?????????????????????????# ^ ?????????????? | | ?????????????????????????# """ """ #??????????? | | ???????????????????????### """ """ #??????????? | | ??????????????##########;; " """ #?? #?????? | | ??????????????# #@ #?s ??????? | | ??????????????# c; ;;;;;##sw ??????? | | ??????????????# * [ % s ?????? | | ??????????????# % = H ?????? | | ??????????????# """ % % ?????? | | ??????????????? """ /| =% ;; ;;# ?????????? | | ????????????????""" /| u #??????????? | | ??????????w???# | # ;!** #??????????? | | ??????????????########### ;;! """ #??????????? | | ???????????????????????## ##!* """ #??????????? | | ??????????????????????##" ## #??????????? | | ??????????????????????# " # "" #??????????? | | ??????????????????????# # T" #??????????? | | ??????????????????????# # "" #??????????? | | ??????????????????????# # #??????????? | | ??????????????????????# # ## ""###??????????? | | ??????????????????????## # #?S""#????????????? | | ???????????????????????#" # ##?"" #????????????? | | ???????????????????????#" # #?####????????????? | | ???????????????????????#" # #?????????????????? | | ?########??????????????#" # #?????????????????? | | ?# #??????????????# # #?????????????????? | | ?# """ #??????????????#" # #?????????????????? | | ?# "R" #??????????????#" # #?????????????????? | | ?# " " #???##?????????#" # #?????????????????? | +----------------------------------------------------+ Best States ------------- Heat Dissipation 31 Energy Generation 23 Energy Capacity 455 Matter Stores 300 Matter Capacity 300 Sight Range 16 Terrain Scan Density 10 Additional Mass Support 6 Armor Coverage 150 Evasion (%) 44 Recoil Reduction 2 Offensive Hacking 10 Item Schematics ----------------- Grenade Launcher | -8/Materials | Scanalyzed Com. Battery | -8/Materials | Scanalyzed Robot Schematics ------------------ None Fabricated ------------ Nothing Alien Tech Used ----------------- None Achievements -------------- It's Just You Tourist Challenges ------------ None Game ------ Seed CombatExperimentalPod Manual? 0 Play Time 00:52:54 Cumulative 3.3 hours Start 2024.04.01 @ 11:17:38 End 2024.04.01 @ 12:12:11 Sessions 1 Manual Loads 0 Difficulty Rogue Special Mode None Game No. 4 Rogue 2 Adventurer 2 Explorer 0 Win Type - Total 0 Types 0/0/0/0/0/0/0/0/0 Lore% 5 Gallery% 7 Achievement% 8 Wizard Run 0 Options --------- Layout 1 ASCII 0 Keyboard 0 Movement Mouse Keybinds 0 Fullscreen 1 Font 48/Smallcaps Map View 50x35 Zoom Use 0% Tactical HUD 0 Map Filters NONE Filters NONE Steam 1 RUN: b0f30709-66c2-4a2a-9db8-bd48a2e08237